[Event "*** Titled Tuesday Blitz"]
[Site "Chess.com"]
[Date "2021.03.30"]
[Round "8"]
[White "Nayemhaque22"]
[Black "mishanick"]
[Result "0-1"]
[WhiteElo "2392"]
[BlackElo "2939"]
[TimeControl "180+1"]
[EndTime "11:28:24 PDT"]
[Termination "mishanick won by resignation"]

1. d4 {[%clk 0:02:59.3]} 1... Nf6 {[%clk 0:02:52.5]} 2. Nf3 {[%clk 0:02:58.8]}
2... e6 {[%clk 0:02:52.5]} 3. c4 {[%clk 0:02:57.4]} 3... d5 {[%clk 0:02:52.1]}
4. Nc3 {[%clk 0:02:55]} 4... dxc4 {[%clk 0:02:51.1]} 5. e3 {[%clk 0:02:53.7]}
5... a6 {[%clk 0:02:50.8]} 6. Bxc4 {[%clk 0:02:53.7]} 6... b5 {[%clk 0:02:50.5]}
7. Bb3 {[%clk 0:02:54.6]} 7... Bb7 {[%clk 0:02:50]} 8. O-O {[%clk 0:02:53.5]}
8... Nbd7 {[%clk 0:02:50.4]} 9. Qe2 {[%clk 0:02:52.6]} 9... c5 {[%clk
0:02:49.4]} 10. dxc5 {[%clk 0:02:49.3]} 10... Nxc5 {[%clk 0:02:48.1]} 11. Rd1
{[%clk 0:02:44.4]} 11... Qc7 {[%clk 0:02:46.3]} 12. e4 {[%clk 0:02:36.4]} 12...
b4 {[%clk 0:02:31.5]} 13. e5 {[%clk 0:02:33.9]} 13... Nfd7 {[%clk 0:02:26.1]}
14. Na4 {[%clk 0:02:26.6]} 14... Be7 {[%clk 0:02:25.6]} 15. Nxc5 {[%clk
0:02:14.5]} 15... Nxc5 {[%clk 0:02:24.9]} 16. Bc2 {[%clk 0:02:12.3]} 16... O-O
{[%clk 0:02:15.3]} 17. Bf4 {[%clk 0:02:10.7]} 17... Rfd8 {[%clk 0:02:14.5]} 18.
Ng5 {[%clk 0:02:01.2]} 18... g6 {[%clk 0:02:07.9]} 19. h4 {[%clk 0:01:55.5]}
19... Rxd1+ {[%clk 0:02:01.8]} 20. Rxd1 {[%clk 0:01:54.8]} 20... Rd8 {[%clk
0:02:01.9]} 21. h5 {[%clk 0:01:50.3]} 21... Rxd1+ {[%clk 0:01:57.7]} 22. Qxd1
{[%clk 0:01:51.1]} 22... Nd7 {[%clk 0:01:49.4]} 23. Nxh7 {[%clk 0:01:04.4]}
23... Qc6 {[%clk 0:01:45.3]} 24. f3 {[%clk 0:00:46.2]} 24... Kxh7 {[%clk
0:01:43.6]} 25. Kh2 {[%clk 0:00:34.7]} 25... Kg7 {[%clk 0:01:39.4]} 26. Kg3
{[%clk 0:00:26.8]} 26... g5 {[%clk 0:01:37.5]} 27. h6+ {[%clk 0:00:24.6]} 27...
Kh8 {[%clk 0:01:37.4]} 28. Be3 {[%clk 0:00:21.7]} 28... Nxe5 {[%clk 0:01:35.2]}
29. Bd4 {[%clk 0:00:17.6]} 29... Qd6 {[%clk 0:01:33.8]} 30. Qd3 {[%clk 0:00:16]}
30... f5 {[%clk 0:01:33.5]} 31. Kf2 {[%clk 0:00:15.3]} 31... Bf6 {[%clk
0:01:31.2]} 32. Bxe5 {[%clk 0:00:12.4]} 32... Bxe5 {[%clk 0:01:29.1]} 33. Qe2
{[%clk 0:00:09.2]} 33... Qd4+ {[%clk 0:01:28.2]} 34. Kf1 {[%clk 0:00:08.9]}
34... Qxb2 {[%clk 0:01:28.1]} 35. g4 {[%clk 0:00:08.2]} 35... Qc1+ {[%clk
0:01:23.5]} 36. Kg2 {[%clk 0:00:07.1]} 36... Qf4 {[%clk 0:01:23]} 37. gxf5
{[%clk 0:00:04.1]} 37... Qh2+ {[%clk 0:01:22.6]} 38. Kf1 {[%clk 0:00:04.3]}
38... Qh1+ {[%clk 0:01:22]} 39. Kf2 {[%clk 0:00:04.4]} 39... Bd4+ {[%clk
0:01:18.8]} 40. Kg3 {[%clk 0:00:03.7]} 40... Qh4+ {[%clk 0:01:18.1]} 41. Kg2
{[%clk 0:00:03.7]} 41... Qg4+ {[%clk 0:01:18]} 42. Kh2 {[%clk 0:00:02.8]} 42...
Bg1+ {[%clk 0:01:16.4]} 43. Kh1 {[%clk 0:00:02.7]} 43... Bxf3+ {[%clk
0:01:17.3]} 44. Qxf3 {[%clk 0:00:02.2]} 44... Qxf3+ {[%clk 0:01:18.2]} 45. Kxg1
{[%clk 0:00:03]} 45... exf5 {[%clk 0:01:19.1]} 0-1

[Event "*** Titled Tuesday Blitz"]
[Site "Chess.com"]
[Date "2021.03.30"]
[Round "8"]
[White "Grieve72"]
[Black "malakismayil"]
[Result "1-0"]
[WhiteElo "2472"]
[BlackElo "2316"]
[TimeControl "180+1"]
[EndTime "11:28:24 PDT"]
[Termination "Grieve72 won on time"]

1. e4 {[%clk 0:03:00.9]} 1... e5 {[%clk 0:02:56.3]} 2. Nf3 {[%clk 0:03:00.5]}
2... Nc6 {[%clk 0:02:55.6]} 3. Bc4 {[%clk 0:03:00.1]} 3... Bc5 {[%clk
0:02:54.6]} 4. O-O {[%clk 0:02:57.6]} 4... Nf6 {[%clk 0:02:54.4]} 5. d3 {[%clk
0:02:58.1]} 5... d6 {[%clk 0:02:49.3]} 6. a4 {[%clk 0:02:56.5]} 6... Bg4 {[%clk
0:02:43]} 7. c3 {[%clk 0:02:50]} 7... h6 {[%clk 0:02:37.5]} 8. b4 {[%clk
0:02:48.8]} 8... Bxb4 {[%clk 0:02:16.3]} 9. cxb4 {[%clk 0:02:49.7]} 9... Nd4
{[%clk 0:02:16.4]} 10. Nbd2 {[%clk 0:02:45]} 10... Qd7 {[%clk 0:02:08]} 11. Bb2
{[%clk 0:02:38.1]} 11... Nxf3+ {[%clk 0:01:59.5]} 12. Nxf3 {[%clk 0:02:39]}
12... Nh5 {[%clk 0:01:52.6]} 13. h3 {[%clk 0:02:23.6]} 13... Nf4 {[%clk
0:01:13.8]} 14. hxg4 {[%clk 0:02:07.9]} 14... Qxg4 {[%clk 0:01:11.2]} 15. Ne1
{[%clk 0:02:07.6]} 15... Ne2+ {[%clk 0:01:08.6]} 16. Qxe2 {[%clk 0:02:05.8]}
16... Qxe2 {[%clk 0:01:09.5]} 17. Bc1 {[%clk 0:01:48.2]} 17... Qh5 {[%clk
0:00:57.9]} 18. f4 {[%clk 0:01:33.9]} 18... f6 {[%clk 0:00:52.4]} 19. Nf3 {[%clk
0:01:28.8]} 19... Ke7 {[%clk 0:00:33]} 20. d4 {[%clk 0:01:03.8]} 20... exf4
{[%clk 0:00:27.3]} 21. Bxf4 {[%clk 0:01:02.9]} 21... g5 {[%clk 0:00:26.6]} 22.
Bg3 {[%clk 0:00:58.2]} 22... Rae8 {[%clk 0:00:21.7]} 23. e5 {[%clk 0:00:44.1]}
23... f5 {[%clk 0:00:19.8]} 24. exd6+ {[%clk 0:00:43.5]} 24... cxd6 {[%clk
0:00:20.3]} 25. Rfe1+ {[%clk 0:00:40.9]} 25... Kf6 {[%clk 0:00:04.5]} 26. Bxd6
{[%clk 0:00:41.1]} 26... Rxe1+ {[%clk 0:00:03.6]} 27. Rxe1 {[%clk 0:00:42]}
27... Rd8 {[%clk 0:00:03.6]} 28. Be7+ {[%clk 0:00:41.6]} 28... Kg7 {[%clk
0:00:04]} 29. Bxd8 {[%clk 0:00:41.8]} 29... Qg4 {[%clk 0:00:03.5]} 30. Bc7
{[%clk 0:00:35.9]} 30... h5 {[%clk 0:00:01.4]} 31. Re7+ {[%clk 0:00:35.5]} 31...
Kf6 {[%clk 0:00:01.9]} 32. Bd8 {[%clk 0:00:33]} 1-0

[Event "*** Titled Tuesday Blitz"]
[Site "Chess.com"]
[Date "2021.03.30"]
[Round "8"]
[White "Romadk"]
[Black "CrushingKings"]
[Result "0-1"]
[WhiteElo "2308"]
[BlackElo "2461"]
[TimeControl "180+1"]
[EndTime "11:28:25 PDT"]
[Termination "CrushingKings won by checkmate"]

1. d4 {[%clk 0:03:00.9]} 1... Nf6 {[%clk 0:02:43.8]} 2. Nf3 {[%clk 0:03:00.4]}
2... g6 {[%clk 0:02:41.6]} 3. c4 {[%clk 0:03:00.4]} 3... Bg7 {[%clk 0:02:42]} 4.
Nc3 {[%clk 0:03:01]} 4... d6 {[%clk 0:02:42.6]} 5. Bg5 {[%clk 0:03:01.5]} 5...
Nbd7 {[%clk 0:02:43]} 6. e3 {[%clk 0:03:01.8]} 6... O-O {[%clk 0:02:41.1]} 7.
Be2 {[%clk 0:03:01.5]} 7... c5 {[%clk 0:02:41]} 8. d5 {[%clk 0:03:01]} 8... Rb8
{[%clk 0:02:41.4]} 9. a4 {[%clk 0:03:00.5]} 9... b6 {[%clk 0:02:41.7]} 10. O-O
{[%clk 0:02:59.4]} 10... a6 {[%clk 0:02:41]} 11. Nd2 {[%clk 0:02:53.7]} 11...
Ne8 {[%clk 0:02:35]} 12. Nde4 {[%clk 0:02:52.2]} 12... h6 {[%clk 0:02:25.9]} 13.
Bh4 {[%clk 0:02:51.4]} 13... f5 {[%clk 0:02:23.9]} 14. Nd2 {[%clk 0:02:50.1]}
14... Ne5 {[%clk 0:02:01.3]} 15. f4 {[%clk 0:02:45.3]} 15... Nf7 {[%clk
0:01:42.5]} 16. e4 {[%clk 0:02:44.4]} 16... g5 {[%clk 0:01:12]} 17. Bg3 {[%clk
0:02:39.1]} 17... e5 {[%clk 0:01:12.2]} 18. dxe6 {[%clk 0:02:36.3]} 18... Bxe6
{[%clk 0:01:11]} 19. Qc2 {[%clk 0:02:33.2]} 19... Qf6 {[%clk 0:01:00.6]} 20.
Rab1 {[%clk 0:02:26.9]} 20... Qg6 {[%clk 0:00:54.4]} 21. Bd3 {[%clk 0:02:22.4]}
21... Bd4+ {[%clk 0:00:50.5]} 22. Kh1 {[%clk 0:02:22]} 22... Ng7 {[%clk
0:00:50.7]} 23. Nd5 {[%clk 0:02:14.3]} 23... Bxd5 {[%clk 0:00:44.5]} 24. cxd5
{[%clk 0:02:15.2]} 24... Nh5 {[%clk 0:00:44.6]} 25. Be2 {[%clk 0:02:01.6]} 25...
Nxg3+ {[%clk 0:00:42.6]} 26. hxg3 {[%clk 0:02:02.5]} 26... g4 {[%clk 0:00:43.3]}
27. Nf3 {[%clk 0:01:35.4]} 27... gxf3 {[%clk 0:00:38.7]} 28. gxf3 {[%clk
0:01:36.3]} 28... Kh8 {[%clk 0:00:36]} 29. g4 {[%clk 0:01:33.7]} 29... Rg8
{[%clk 0:00:20.4]} 30. exf5 {[%clk 0:01:25.6]} 30... Qf6 {[%clk 0:00:20.7]} 31.
Kg2 {[%clk 0:01:23.7]} 31... Be3 {[%clk 0:00:20.6]} 32. Kg3 {[%clk 0:00:57.6]}
32... Bxf4+ {[%clk 0:00:19.8]} 33. Kg2 {[%clk 0:00:54.3]} 33... Qh4 {[%clk
0:00:19.2]} 34. Rh1 {[%clk 0:00:53.6]} 34... Qg3+ {[%clk 0:00:17.2]} 35. Kf1
{[%clk 0:00:53.9]} 35... Rbe8 {[%clk 0:00:16.4]} 36. b4 {[%clk 0:00:48.2]} 36...
Re3 {[%clk 0:00:13.3]} 37. bxc5 {[%clk 0:00:46]} 37... Rxf3+ {[%clk 0:00:13.3]}
38. Bxf3 {[%clk 0:00:45]} 38... Qxf3+ {[%clk 0:00:14.1]} 39. Kg1 {[%clk
0:00:40.7]} 39... Rxg4+ {[%clk 0:00:13.1]} 40. Qg2 {[%clk 0:00:39.1]} 40...
Qxg2# {[%clk 0:00:13.1]} 0-1

[Event "*** Titled Tuesday Blitz"]
[Site "Chess.com"]
[Date "2021.03.30"]
[Round "8"]
[White "EvgenyT"]
[Black "jcibarra"]
[Result "1-0"]
[WhiteElo "2931"]
[BlackElo "2850"]
[TimeControl "180+1"]
[EndTime "11:28:28 PDT"]
[Termination "EvgenyT won on time"]

1. c4 {[%clk 0:03:00.9]} 1... e5 {[%clk 0:02:59]} 2. g3 {[%clk 0:02:59.7]} 2...
Nc6 {[%clk 0:02:59.2]} 3. Bg2 {[%clk 0:02:59.3]} 3... Bc5 {[%clk 0:02:59.1]} 4.
Nc3 {[%clk 0:02:57.8]} 4... d6 {[%clk 0:02:59.1]} 5. e3 {[%clk 0:02:56.2]} 5...
a6 {[%clk 0:02:58.8]} 6. Nge2 {[%clk 0:02:53]} 6... Ba7 {[%clk 0:02:58.4]} 7. b3
{[%clk 0:02:50.8]} 7... h5 {[%clk 0:02:55.3]} 8. h3 {[%clk 0:02:49.6]} 8... h4
{[%clk 0:02:42.6]} 9. g4 {[%clk 0:02:49.6]} 9... f5 {[%clk 0:02:43.2]} 10. gxf5
{[%clk 0:02:40.1]} 10... Bxf5 {[%clk 0:02:42.4]} 11. Be4 {[%clk 0:02:40.7]}
11... Qd7 {[%clk 0:02:31]} 12. Qc2 {[%clk 0:02:38.4]} 12... Bxh3 {[%clk
0:01:56.7]} 13. Bb2 {[%clk 0:02:30.1]} 13... Nf6 {[%clk 0:01:49.1]} 14. Bg6+
{[%clk 0:02:29.5]} 14... Kf8 {[%clk 0:01:34.4]} 15. O-O-O {[%clk 0:02:20.5]}
15... Rh6 {[%clk 0:01:07.2]} 16. Rdg1 {[%clk 0:02:18.1]} 16... Nb4 {[%clk
0:01:02]} 17. Qb1 {[%clk 0:02:04.1]} 17... Rxg6 {[%clk 0:00:57.5]} 18. Qxg6
{[%clk 0:02:03.5]} 18... Bf5 {[%clk 0:00:57.1]} 19. Qg2 {[%clk 0:02:03.1]} 19...
Nd3+ {[%clk 0:00:54.9]} 20. Kd1 {[%clk 0:02:03]} 20... Nxb2+ {[%clk 0:00:51]}
21. Ke1 {[%clk 0:02:03.5]} 21... Nd3+ {[%clk 0:00:47.9]} 22. Kf1 {[%clk
0:02:02.8]} 22... h3 {[%clk 0:00:26.7]} 23. Qxb7 {[%clk 0:02:00.9]} 23... Qc8
{[%clk 0:00:26.7]} 24. Qf3 {[%clk 0:01:52]} 24... Rb8 {[%clk 0:00:20.6]} 25. Rg5
{[%clk 0:01:46.3]} 25... Be6 {[%clk 0:00:14.9]} 26. Qg3 {[%clk 0:01:43.2]} 26...
Qd7 {[%clk 0:00:12.8]} 27. Qh4 {[%clk 0:01:42.1]} 27... Qf7 {[%clk 0:00:10.9]}
28. Rhg1 {[%clk 0:01:40.6]} 28... Ne8 {[%clk 0:00:07.5]} 29. Ne4 {[%clk
0:01:31.5]} 29... Bf5 {[%clk 0:00:04]} 30. N2g3 {[%clk 0:01:18.6]} 30... h2
{[%clk 0:00:04.1]} 31. Qxh2 {[%clk 0:01:16.9]} 31... Be6 {[%clk 0:00:02.8]} 32.
Ke2 {[%clk 0:01:05]} 32... Nc5 {[%clk 0:00:02.3]} 33. Nxc5 {[%clk 0:00:59.9]}
33... Bxc5 {[%clk 0:00:03.2]} 34. Nh5 {[%clk 0:01:00.1]} 34... Bxc4+ {[%clk
0:00:02.1]} 35. bxc4 {[%clk 0:00:57]} 35... Qxc4+ {[%clk 0:00:03]} 36. Kf3
{[%clk 0:00:57.4]} 36... Qd5+ {[%clk 0:00:02.4]} 37. Kg3 {[%clk 0:00:55.1]}
37... Rb2 {[%clk 0:00:01.9]} 38. Qh3 {[%clk 0:00:43.4]} 1-0

[Event "*** Titled Tuesday Blitz"]
[Site "Chess.com"]
[Date "2021.03.30"]
[Round "8"]
[White "ARMQUEEN"]
[Black "GM_Crest"]
[Result "0-1"]
[WhiteElo "2327"]
[BlackElo "2711"]
[TimeControl "180+1"]
[EndTime "11:28:28 PDT"]
[Termination "GM_Crest won by resignation"]

1. e4 {[%clk 0:03:00.9]} 1... e6 {[%clk 0:02:59.4]} 2. d4 {[%clk 0:02:58.4]}
2... d5 {[%clk 0:02:59.3]} 3. Bd3 {[%clk 0:02:57.9]} 3... dxe4 {[%clk
0:02:58.9]} 4. Bxe4 {[%clk 0:02:57.4]} 4... Nf6 {[%clk 0:02:59.5]} 5. Bf3 {[%clk
0:02:57.2]} 5... c5 {[%clk 0:02:59.5]} 6. Ne2 {[%clk 0:02:54.8]} 6... Nc6 {[%clk
0:02:58.5]} 7. Be3 {[%clk 0:02:54]} 7... cxd4 {[%clk 0:02:58.3]} 8. Nxd4 {[%clk
0:02:53.8]} 8... Ne5 {[%clk 0:02:58.5]} 9. Nc3 {[%clk 0:02:54]} 9... a6 {[%clk
0:02:57.6]} 10. Qe2 {[%clk 0:02:52.7]} 10... Nxf3+ {[%clk 0:02:57.7]} 11. Qxf3
{[%clk 0:02:52.3]} 11... e5 {[%clk 0:02:57.4]} 12. Nb3 {[%clk 0:02:42.2]} 12...
Bb4 {[%clk 0:02:52.4]} 13. O-O {[%clk 0:02:38.4]} 13... Bxc3 {[%clk 0:02:39.9]}
14. bxc3 {[%clk 0:02:24.8]} 14... O-O {[%clk 0:02:39.2]} 15. Rad1 {[%clk
0:02:19.6]} 15... Qc7 {[%clk 0:02:37]} 16. Bc5 {[%clk 0:02:13.2]} 16... Bg4
{[%clk 0:02:31.5]} 17. Qe3 {[%clk 0:02:02]} 17... Bxd1 {[%clk 0:02:30.6]} 18.
Bxf8 {[%clk 0:02:01.9]} 18... Bxc2 {[%clk 0:02:29.4]} 19. Bxg7 {[%clk
0:01:54.4]} 19... Kxg7 {[%clk 0:02:27.2]} 20. Qg5+ {[%clk 0:01:53.2]} 20... Bg6
{[%clk 0:02:26.9]} 21. Nd2 {[%clk 0:01:46.4]} 21... h6 {[%clk 0:02:24.3]} 22.
Qg3 {[%clk 0:01:42.9]} 22... Re8 {[%clk 0:02:16.6]} 23. h4 {[%clk 0:01:36.8]}
23... Qc5 {[%clk 0:02:11.1]} 24. Re1 {[%clk 0:01:24.7]} 24... Kh7 {[%clk
0:02:02.4]} 25. Qf3 {[%clk 0:01:19.7]} 25... Qc6 {[%clk 0:01:53.5]} 26. Qg3
{[%clk 0:01:14.8]} 26... Nh5 {[%clk 0:01:53.3]} 27. Qe3 {[%clk 0:01:11.4]} 27...
Nf4 {[%clk 0:01:52.5]} 28. Nf3 {[%clk 0:01:10.2]} 28... f6 {[%clk 0:01:52.2]}
29. g3 {[%clk 0:01:05]} 29... Bh5 {[%clk 0:01:50.4]} 30. gxf4 {[%clk 0:00:57.8]}
30... Bxf3 {[%clk 0:01:49.4]} 31. Kh2 {[%clk 0:00:54.1]} 31... e4 {[%clk
0:01:41.2]} 32. Rg1 {[%clk 0:00:52.2]} 32... Rg8 {[%clk 0:01:40]} 33. Rxg8
{[%clk 0:00:38.5]} 33... Kxg8 {[%clk 0:01:38.7]} 34. Qd4 {[%clk 0:00:39.4]}
34... Kf7 {[%clk 0:01:32.7]} 35. Qd8 {[%clk 0:00:35.3]} 35... h5 {[%clk
0:01:29.9]} 36. Qh8 {[%clk 0:00:34.1]} 36... Ke6 {[%clk 0:01:07.7]} 37. Qg8+
{[%clk 0:00:29.6]} 37... Kd6 {[%clk 0:01:07.3]} 38. Qf8+ {[%clk 0:00:29.4]}
38... Kd5 {[%clk 0:01:07.5]} 39. Qf7+ {[%clk 0:00:29]} 39... Kc5 {[%clk
0:01:07.4]} 40. Qe7+ {[%clk 0:00:29.2]} 40... Kc4 {[%clk 0:01:06.3]} 41. Qb4+
{[%clk 0:00:29.3]} 41... Kd3 {[%clk 0:01:06.4]} 42. Qb1+ {[%clk 0:00:28.2]}
42... Kxc3 {[%clk 0:01:04.8]} 43. Qc1+ {[%clk 0:00:28.3]} 43... Kd3 {[%clk
0:01:04.6]} 44. Qb1+ {[%clk 0:00:28.5]} 44... Qc2 {[%clk 0:01:04.6]} 45. Qf1+
{[%clk 0:00:27.4]} 45... Kd2 {[%clk 0:01:01.2]} 46. Qg1 {[%clk 0:00:20.2]} 46...
Qc7 {[%clk 0:00:59]} 47. Qg3 {[%clk 0:00:19.2]} 47... Ke2 {[%clk 0:00:58.1]} 48.
Kg1 {[%clk 0:00:18.3]} 48... Qc1+ {[%clk 0:00:57.5]} 0-1

[Event "*** Titled Tuesday Blitz"]
[Site "Chess.com"]
[Date "2021.03.30"]
[Round "8"]
[White "eduardoperalta"]
[Black "GMJustin"]
[Result "1-0"]
[WhiteElo "2482"]
[BlackElo "2291"]
[TimeControl "180+1"]
[EndTime "11:28:31 PDT"]
[Termination "eduardoperalta won on time"]

1. d4 {[%clk 0:02:55.7]} 1... Nf6 {[%clk 0:02:54]} 2. c4 {[%clk 0:02:50.3]} 2...
e6 {[%clk 0:02:45.8]} 3. Nf3 {[%clk 0:02:47.6]} 3... d5 {[%clk 0:02:45.3]} 4. e3
{[%clk 0:02:47.4]} 4... c5 {[%clk 0:02:32.2]} 5. Nc3 {[%clk 0:02:47]} 5... a6
{[%clk 0:02:18.1]} 6. Bd3 {[%clk 0:02:42.4]} 6... dxc4 {[%clk 0:02:11.3]} 7.
Bxc4 {[%clk 0:02:41.8]} 7... b5 {[%clk 0:01:31.8]} 8. Bd3 {[%clk 0:02:41]} 8...
Bb7 {[%clk 0:01:30]} 9. O-O {[%clk 0:02:40.2]} 9... Nbd7 {[%clk 0:01:29]} 10.
Qe2 {[%clk 0:02:40]} 10... Qb8 {[%clk 0:01:27.4]} 11. Rd1 {[%clk 0:02:38.6]}
11... Bd6 {[%clk 0:01:22.2]} 12. h3 {[%clk 0:02:31.4]} 12... O-O {[%clk
0:01:14]} 13. e4 {[%clk 0:02:30.8]} 13... c4 {[%clk 0:01:00.1]} 14. Bc2 {[%clk
0:02:29.3]} 14... e5 {[%clk 0:00:54.5]} 15. dxe5 {[%clk 0:02:28.2]} 15... Nxe5
{[%clk 0:00:54.2]} 16. Nd4 {[%clk 0:02:25.7]} 16... Ng6 {[%clk 0:00:18.4]} 17.
Nf5 {[%clk 0:02:22.1]} 17... Bc5 {[%clk 0:00:14.7]} 18. Be3 {[%clk 0:02:19.6]}
18... Qe5 {[%clk 0:00:12.4]} 19. Bxc5 {[%clk 0:02:15.8]} 19... Qxc5 {[%clk
0:00:12.1]} 20. Qe3 {[%clk 0:02:15.4]} 20... Qxe3 {[%clk 0:00:10.4]} 21. Nxe3
{[%clk 0:02:15.3]} 21... Rfe8 {[%clk 0:00:07.9]} 22. f3 {[%clk 0:02:15.2]} 22...
Rad8 {[%clk 0:00:07]} 23. Kf2 {[%clk 0:02:14.3]} 23... Nf4 {[%clk 0:00:04.8]}
24. a3 {[%clk 0:02:06.7]} 24... g6 {[%clk 0:00:04.2]} 25. h4 {[%clk 0:02:06]}
25... Ne6 {[%clk 0:00:03.5]} 26. Ncd5 {[%clk 0:02:02.3]} 26... Nxd5 {[%clk
0:00:02.9]} 27. exd5 {[%clk 0:02:01.8]} 27... Nf4 {[%clk 0:00:02.3]} 28. d6
{[%clk 0:01:57.1]} 28... Re6 {[%clk 0:00:02]} 29. Rd4 {[%clk 0:01:53.8]} 29...
Nd3+ {[%clk 0:00:01.6]} 30. Bxd3 {[%clk 0:01:52.8]} 30... cxd3 {[%clk 0:00:02]}
31. Rxd3 {[%clk 0:01:52.8]} 31... Rexd6 {[%clk 0:00:02.2]} 32. Rxd6 {[%clk
0:01:52.1]} 32... Rxd6 {[%clk 0:00:03.1]} 33. Ke2 {[%clk 0:01:50]} 33... f5
{[%clk 0:00:03.4]} 34. g3 {[%clk 0:01:49.1]} 34... Kf7 {[%clk 0:00:03.3]} 35.
Rc1 {[%clk 0:01:47.6]} 35... Rd7 {[%clk 0:00:03.5]} 36. b4 {[%clk 0:01:46.2]}
36... Ke7 {[%clk 0:00:03.6]} 37. f4 {[%clk 0:01:45.6]} 37... Kd8 {[%clk
0:00:03.6]} 38. Rc5 {[%clk 0:01:43.5]} 38... Rc7 {[%clk 0:00:03.3]} 39. Re5
{[%clk 0:01:43.3]} 39... Rc3 {[%clk 0:00:02.7]} 40. Re6 {[%clk 0:01:35.3]} 40...
Rxa3 {[%clk 0:00:02.5]} 41. Rf6 {[%clk 0:01:35.2]} 41... Rb3 {[%clk 0:00:02]}
42. Rf7 {[%clk 0:01:34.4]} 42... Bc6 {[%clk 0:00:02.1]} 43. Rxh7 {[%clk
0:01:33.6]} 43... Rxb4 {[%clk 0:00:02.3]} 44. Rg7 {[%clk 0:01:33.6]} 44... Be8
{[%clk 0:00:02.3]} 45. h5 {[%clk 0:01:31.6]} 45... gxh5 {[%clk 0:00:02.3]} 46.
Nxf5 {[%clk 0:01:31.5]} 46... a5 {[%clk 0:00:02.1]} 47. Nd6 {[%clk 0:01:30.4]}
47... Rb2+ {[%clk 0:00:02.2]} 48. Kd3 {[%clk 0:01:30]} 48... Bc6 {[%clk
0:00:02.1]} 49. Kd4 {[%clk 0:01:29]} 49... a4 {[%clk 0:00:01.7]} 50. Kc5 {[%clk
0:01:28.9]} 50... Rc2+ {[%clk 0:00:01.8]} 51. Kb6 {[%clk 0:01:28.1]} 51... a3
{[%clk 0:00:01.9]} 52. Ra7 {[%clk 0:01:26.6]} 52... a2 {[%clk 0:00:02]} 53. f5
{[%clk 0:01:21.9]} 53... b4 {[%clk 0:00:01.9]} 54. f6 {[%clk 0:01:21.5]} 54...
b3 {[%clk 0:00:01.6]} 55. f7 {[%clk 0:01:21.2]} 55... Rf2 {[%clk 0:00:01.6]} 56.
Kxc6 {[%clk 0:01:19.8]} 1-0

[Event "*** Titled Tuesday Blitz"]
[Site "Chess.com"]
[Date "2021.03.30"]
[Round "8"]
[White "Trickov"]
[Black "VladaSviridova"]
[Result "1-0"]
[WhiteElo "2408"]
[BlackElo "2236"]
[TimeControl "180+1"]
[EndTime "11:28:32 PDT"]
[Termination "Trickov won on time"]

1. d4 {[%clk 0:02:58.7]} 1... d5 {[%clk 0:03:00]} 2. Nf3 {[%clk 0:02:57.7]} 2...
Nf6 {[%clk 0:02:59.7]} 3. c4 {[%clk 0:02:57.2]} 3... c6 {[%clk 0:03:00.2]} 4.
Nc3 {[%clk 0:02:56.9]} 4... dxc4 {[%clk 0:02:58.3]} 5. a4 {[%clk 0:02:57]} 5...
Bf5 {[%clk 0:02:58]} 6. e3 {[%clk 0:02:56.9]} 6... e6 {[%clk 0:02:58.1]} 7. Bxc4
{[%clk 0:02:57.3]} 7... Bb4 {[%clk 0:02:57.6]} 8. O-O {[%clk 0:02:56.8]} 8...
O-O {[%clk 0:02:57.4]} 9. Qb3 {[%clk 0:02:56.9]} 9... Qb6 {[%clk 0:02:50.3]} 10.
Bd2 {[%clk 0:02:43.1]} 10... Nbd7 {[%clk 0:02:47.2]} 11. h3 {[%clk 0:02:40.1]}
11... a5 {[%clk 0:02:41.9]} 12. Rfd1 {[%clk 0:02:38.2]} 12... h6 {[%clk
0:02:38.9]} 13. Ne5 {[%clk 0:02:26.1]} 13... Nxe5 {[%clk 0:02:32.6]} 14. dxe5
{[%clk 0:02:25.3]} 14... Nd7 {[%clk 0:02:32.8]} 15. e4 {[%clk 0:02:20.7]} 15...
Nc5 {[%clk 0:02:30.4]} 16. Qc2 {[%clk 0:02:16.8]} 16... Bxc3 {[%clk 0:01:50.5]}
17. exf5 {[%clk 0:02:13.2]} 17... Bxe5 {[%clk 0:01:34.3]} 18. Be3 {[%clk
0:02:05.5]} 18... Qb4 {[%clk 0:01:26.5]} 19. fxe6 {[%clk 0:02:00.3]} 19... Nxe6
{[%clk 0:01:21.9]} 20. Rab1 {[%clk 0:01:53.1]} 20... Rad8 {[%clk 0:01:03.6]} 21.
b3 {[%clk 0:01:52.7]} 21... Bf6 {[%clk 0:00:44.6]} 22. Bxe6 {[%clk 0:01:38.8]}
22... fxe6 {[%clk 0:00:43.7]} 23. Bc5 {[%clk 0:01:38.6]} 23... Qf4 {[%clk
0:00:21.6]} 24. Bxf8 {[%clk 0:01:31.1]} 24... Rxf8 {[%clk 0:00:21.4]} 25. Qc4
{[%clk 0:01:29.7]} 25... Qf5 {[%clk 0:00:18.9]} 26. Re1 {[%clk 0:01:25.9]} 26...
Kh8 {[%clk 0:00:14.8]} 27. Qxe6 {[%clk 0:01:19.9]} 27... Qf4 {[%clk 0:00:14.5]}
28. Qe3 {[%clk 0:01:17.1]} 28... Qf5 {[%clk 0:00:13.1]} 29. Rbd1 {[%clk
0:01:16.5]} 29... Bg5 {[%clk 0:00:12.8]} 30. Qe2 {[%clk 0:01:12]} 30... Bh4
{[%clk 0:00:12.6]} 31. g3 {[%clk 0:01:10.7]} 31... Bf6 {[%clk 0:00:09.1]} 32.
Kg2 {[%clk 0:01:07.5]} 32... h5 {[%clk 0:00:06.9]} 33. Qe4 {[%clk 0:01:03.7]}
33... Qg5 {[%clk 0:00:05.8]} 34. h4 {[%clk 0:01:02.8]} 34... Qc5 {[%clk
0:00:05.5]} 35. Rc1 {[%clk 0:00:56]} 35... Qa3 {[%clk 0:00:04.8]} 36. Qf3 {[%clk
0:00:51.8]} 36... Qb2 {[%clk 0:00:03.9]} 37. Qxh5+ {[%clk 0:00:50.8]} 37... Kg8
{[%clk 0:00:04.6]} 38. Qe2 {[%clk 0:00:50.3]} 38... Qxb3 {[%clk 0:00:04.4]} 39.
Qc4+ {[%clk 0:00:50.4]} 39... Qxc4 {[%clk 0:00:03.1]} 40. Rxc4 {[%clk
0:00:50.4]} 40... Bd8 {[%clk 0:00:01.6]} 41. Rb1 {[%clk 0:00:48.4]} 1-0